bitfinex-derivatives/quotes_ETHF0:USTF0_20250309
["timestamp","ask_amount","ask_price","bid_price","bid_amount"]
[1741561853454,3.2078,2019.8,2019.1,2.47654]
[1741561853660,3.2078,2019.9,2019.5,6.38499325]
[1741561853853,2.948,2019.8,2019.4,6.38499325]
[1741561854051,3.2078,2019.6,2018.9,0.99069]
[1741561854352,3.2078,2019.6,2018.7,0.00743439]
[1741561854353,3.2078,2019.9,2019.2,6.38499325]
[1741561854656,3.2078,2019.9,2019.6,3.2078]
[1741561854853,3.2078,2019.9,2019.5,3.2078]
[1741561855154,3.2078,2019.6,2019.3,6.44035521]
[1741561855355,4.19819,2019.6,2019.1,5.30618083]
[1741561855653,3.2078,2019.3,2018.7,0.00743439]
[1741561855955,4.19856,2018.8,2018.7,0.00743439]
[1741561856353,7.2078,2018.8,2017.7,3.2078]
[1741561856652,3.2078,2018.2,2017.7,0.496]
[1741561856854,3.2078,2017.9,2017.5,0.9914]
[1741561857157,2.948,2018.5,2017.7,0.99128]
[1741561857158,8.2629,2018.5,2017.7,0.99128]
[1741561857361,3.2078,2017.8,2017.7,0.99128]
[1741561857547,3.2078,2017.8,2017.6,0.496]
[1741561857856,0.99143,2017.5,2017.2,0.496]
[1741561858157,2.948,2017.4,2016.5,0.496]
[1741561858351,3.2078,2017.2,2017.1,0.00743439]
[1741561858651,3.2078,2017.6,2017.1,0.00743439]
[1741561858958,0.00743439,2017.4,2017.1,0.00743439]
[1741561859160,0.00743439,2017.4,2017.3,0.9915]
[1741561859460,0.99155,2017.2,2017.1,0.00743439]
[1741561859649,3.2078,2017.3,2017.2,0.99151]
[1741561859852,0.00743439,2017.4,2017.3,0.9915]
[1741561860151,0.00743439,2017.4,2017.1,6.34965]
[1741561860152,4.00743439,2017.4,2017.1,6.34965]
[1741561860457,3.2078,2017.2,2017.1,0.99903439]
[1741561860660,0.00743439,2017.4,2017.2,6.3181719]
[1741561860857,0.00743439,2017.4,2017.3,0.9915]
[1741561861065,0.00743439,2017.4,2017.1,0.00743439]
[1741561861250,4.19935,2017.2,2017.1,0.00743439]
[1741561861452,2.47911,2017.1,2016.5,0.496]
[1741561861664,2.47911,2017.1,2015.6,0.496]
[1741561861665,5.68751,2016.6,2015.6,0.496]
[1741561861862,3.2078,2016.8,2016.0,3.2078]
[1741561862161,3.2078,2016.1,2016.0,6.4766328]
[1741561862359,3.2078,2016.9,2015.7,4.408]
[1741561862554,3.2078,2017.7,2016.8,3.2078]
[1741561862752,3.2078,2017.9,2017.2,3.2078]
[1741561862963,2.948,2018.8,2017.8,3.2078]
[1741561863162,3.2078,2018.9,2018.4,3.2078]
[1741561863365,2.948,2019.1,2018.4,3.2078]
[1741561863660,8.0764,2019.3,2018.5,6.42911545]
[1741561863861,0.99086,2018.6,2017.8,0.496]
[1741561864056,3.2078,2018.7,2017.5,3.2078]
[1741561864057,2.948,2018.5,2017.6,2.47835]
[1741561864260,2.948,2018.5,2018.0,6.43654984]
[1741561864261,3.2078,2018.3,2018.0,6.43654984]
[1741561864459,3.21523439,2018.4,2017.8,6.42911545]
[1741561864655,3.2078,2019.7,2018.3,3.2078]
[1741561864860,3.2078,2020.0,2019.3,3.2078]
[1741561865066,2.948,2020.6,2019.9,3.2078]
[1741561865365,2.948,2021.1,2020.3,3.2078]
[1741561865661,3.2078,2020.8,2020.3,3.2078]
[1741561865860,0.00743439,2020.9,2020.4,0.4952]
[1741561866059,2.948,2021.9,2020.8,3.2078]
[1741561866254,2.948,2022.0,2021.8,3.2078]
[1741561866462,2.948,2022.4,2021.8,3.2078]
[1741561866766,3.2078,2022.5,2022.2,3.2078]
[1741561866959,3.93682,2022.8,2022.2,3.2078]
[1741561866960,2.948,2022.8,2022.2,3.2078]
[1741561867159,3.2078,2023.2,2022.6,3.2078]
[1741561867459,3.2078,2023.7,2022.9,3.2078]
[1741561867660,2.948,2023.6,2022.9,4.19652]
[1741561867854,0.98854,2023.4,2022.7,8.77113951]
[1741561868054,3.2078,2023.7,2023.3,3.2078]
[1741561868257,2.948,2023.6,2023.0,0.00741583]
[1741561868453,3.2078,2023.4,2023.0,0.00741583]
[1741561868659,3.2078,2023.7,2023.2,3.2078]
[1741561868861,3.2078,2024.2,2023.2,3.2078]
[1741561869060,2.948,2024.1,2023.9,3.2078]
[1741561869264,2.948,2024.7,2024.0,0.98822]
[1741561869465,10.25835,2025.8,2024.6,3.2078]
[1741561869466,2.948,2025.0,2024.6,3.2078]
[1741561869662,3.93543,2025.7,2024.9,3.2078]
[1741561869860,3.93543,2025.7,2024.7,0.98785]
[1741561869861,2.948,2026.0,2025.6,3.2078]
[1741561870062,6.1558,2026.1,2025.5,3.2078]
[1741561870265,2.948,2026.0,2025.5,3.2078]
[1741561870457,6.1558,2026.1,2025.6,0.00741583]
[1741561870658,4.19517,2025.8,2025.6,0.00741583]
[1741561870860,3.2078,2025.5,2024.3,4.19584]
[1741561871160,3.2078,2024.6,2024.5,6.4185287]
[1741561871367,3.2078,2025.4,2024.3,3.2078]
[1741561871558,2.948,2025.3,2024.7,3.2078]
[1741561871758,3.2078,2024.7,2022.4,4.547]
[1741561871961,4.93612,2026.1,2022.4,4.547]
[1741561871962,3.2078,2024.2,2023.5,3.2078]
[1741561872262,3.2078,2023.6,2022.9,22.7154]
[1741561872459,3.2078,2024.1,2022.6,2.47216]
[1741561872659,3.2078,2022.7,2021.9,0.4944]
[1741561872865,4.694,2023.5,2022.1,5.29122592]
[1741561873163,3.2078,2023.4,2022.4,3.2078]
[1741561873362,3.2078,2023.8,2022.7,3.2078]
[1741561873666,4.717,2025.1,2023.6,3.2078]
[1741561873667,2.948,2025.0,2023.6,3.2078]
[1741561873962,3.2078,2025.4,2024.5,0.98796]
[1741561874162,3.2078,2025.8,2024.7,3.2078]
[1741561874569,3.2078,2025.6,2024.8,11.94941803]
[1741561874863,3.2078,2024.9,2023.8,3.2078]
[1741561875063,3.2078,2024.1,2024.0,0.4944]
[1741561875262,3.2078,2025.2,2024.2,6.51736247]
[1741561875471,3.2078,2024.3,2024.1,7.02935834]
[1741561875767,2.948,2026.4,2024.4,2.47002]
[1741561875965,6.41560252,2026.4,2025.4,3.2078]
[1741561876165,6.41560252,2026.4,2024.5,4.762]
[1741561876166,6.15580252,2026.3,2025.7,3.2078]
[1741561876368,3.20780252,2026.4,2026.0,3.2078]
[1741561876560,6.15580252,2026.8,2026.0,3.2078]
[1741561876760,0.00741583,2026.4,2025.8,5.4498811]
[1741561876972,0.00741583,2026.4,2025.9,3.2078]
[1741561877171,0.98758,2025.4,2025.1,3.2078]
[1741561877363,3.2078,2025.4,2024.5,0.4944]
[1741561877562,3.2078,2024.6,2024.2,0.4944]
[1741561877761,0.98823,2024.0,2023.1,3.2078]
[1741561877972,3.2078,2023.6,2023.4,6.30309757]
[1741561878271,3.2078,2023.6,2022.3,37.50817037]
[1741561878470,3.2078,2023.0,2022.3,22.177]
[1741561878766,3.2078,2022.6,2021.9,0.4944]
[1741561878966,2.948,2022.9,2021.7,0.4952]
[1741561879165,3.2078,2022.0,2021.7,6.90518552]
[1741561879373,3.2078,2022.3,2021.7,6.90518552]
[1741561879571,3.2078,2022.3,2021.7,0.4952]
[1741561879969,0.00741583,2022.5,2022.2,0.9891]
[1741561880170,3.2078,2022.6,2021.8,12.00482795]
[1741561880483,3.2078,2022.0,2021.6,0.00741583]
[1741561880669,3.2078,2022.4,2021.6,0.50181583]
[1741561880864,3.2078,2022.1,2021.9,6.45486549]
[1741561881165,4.19677,2022.5,2021.7,6.45486549]
[1741561881366,2.948,2023.1,2021.7,6.45486549]
[1741561881367,3.21521583,2022.2,2021.7,6.45486549]
[1741561881566,3.21521583,2022.2,2021.6,0.00741583]
[1741561881763,0.00741583,2022.2,2022.1,0.98914]
[1741561882067,3.2078,2023.7,2022.1,11.27066046]
[1741561882274,3.2078,2024.1,2023.2,3.2078]
[1741561882576,3.2078,2024.6,2024.0,0.98821]
[1741561882772,3.2078,2024.3,2023.4,3.2078]
[1741561882967,3.2078,2024.6,2023.4,3.2078]
[1741561883168,3.2078,2024.0,2023.6,0.00741583]
[1741561883479,3.2078,2023.7,2022.7,3.2078]
[1741561883776,3.2078,2022.8,2021.9,3.7022]
[1741561884072,5.933,2023.6,2021.9,0.4944]
[1741561884073,3.2078,2022.1,2021.9,0.4944]
[1741561884276,3.2078,2022.4,2021.8,3.2078]
[1741561884574,3.2078,2022.1,2022.0,6.340919]
[1741561884776,3.2078,2022.1,2021.9,0.00741583]
[1741561885075,2.948,2022.0,2021.2,22.178]
[1741561885371,6.1558,2022.0,2021.2,22.178]
[1741561885572,3.2078,2021.5,2020.5,3.2078]
[1741561885882,3.2078,2021.5,2021.4,0.98949]
[1741561886065,3.2078,2022.0,2021.0,3.2078]
[1741561886270,0.00741583,2021.7,2021.2,0.00741583]
[1741561886470,0.00741583,2021.7,2021.6,0.98939]
[1741561886774,0.00741583,2021.7,2021.3,9.56069201]
[1741561886970,0.00741583,2021.7,2021.3,3.2078]
[1741561887176,3.2078,2021.6,2021.2,0.00741583]
[1741561887376,0.00741583,2021.7,2021.2,0.00741583]
[1741561887873,0.00741583,2021.7,2021.6,0.98939]
[1741561888073,0.00741583,2021.7,2021.4,0.98945]
[1741561888271,0.00741583,2021.7,2021.2,0.00741583]
[1741561888775,3.2078,2021.4,2021.2,0.00741583]
[1741561888977,0.00741583,2021.7,2021.2,0.00741583]
[1741561889478,3.2078,2021.5,2021.2,0.00741583]
[1741561889672,3.2078,2021.5,2021.2,0.99697583]
[1741561889873,3.2078,2021.5,2021.2,0.00741583]
[1741561890278,2.948,2021.4,2020.9,3.703]
[1741561890574,0.98966,2021.1,2020.5,0.9899]
[1741561890783,3.2078,2021.0,2020.5,0.9899]
[1741561891080,3.2078,2021.0,2020.2,3.2078]
[1741561891273,6.1558,2021.3,2020.5,3.2078]
[1741561891466,6.1558,2021.3,2020.2,2.47517]
[1741561891467,3.2078,2020.9,2020.4,0.00741583]
[1741561891668,0.98993,2020.5,2020.4,0.00741583]
[1741561891872,2.948,2020.5,2019.9,3.2078]
[1741561892073,6.1558,2020.6,2019.9,3.2078]
[1741561892375,6.1558,2020.9,2020.6,0.98986]
[1741561892572,3.2078,2020.9,2020.2,3.2078]
[1741561892780,2.948,2021.5,2020.7,6.30055792]
[1741561892981,0.00741583,2020.8,2020.7,6.30055792]
[1741561893172,0.00741583,2020.8,2020.7,7.29038792]
[1741561893370,0.00741583,2020.8,2020.7,0.98983]
[1741561893572,0.00741583,2020.8,2020.3,0.00741583]
[1741561894583,3.2078,2020.7,2020.3,0.00741583]
[1741561894778,0.98992,2020.6,2020.3,0.00741583]
[1741561895075,6.1558,2020.7,2020.3,0.00741583]
[1741561895281,0.98991,2020.6,2020.3,0.00741583]
[1741561895476,3.2078,2020.4,2020.3,0.00741583]
[1741561895982,10.1558,2020.4,2019.8,3.2078]
[1741561896169,3.2078,2020.1,2019.7,0.9903]
[1741561896475,3.2078,2020.1,2019.7,0.99031]
[1741561896678,2.948,2020.3,2019.7,2.47581]
[1741561896881,2.948,2020.3,2019.8,6.82703003]
[1741561897079,6.1558,2020.3,2020.1,0.99012]
[1741561897274,2.948,2020.3,2019.8,6.83444586]
[1741561897476,2.948,2020.3,2019.9,0.9902]
[1741561897675,2.948,2020.3,2020.1,0.99009]
[1741561897982,2.948,2020.3,2019.8,0.50261583]
[1741561898182,3.2078,2020.2,2019.8,0.00741583]
[1741561898476,3.2078,2019.9,2018.9,0.4952]
[1741561898682,3.2078,2019.8,2018.9,0.4952]
[1741561898979,0.99,2020.4,2019.8,0.99023]
[1741561899277,3.2078,2020.1,2019.0,9.55330343]
[1741561899478,0.00741583,2020.3,2019.9,0.00494388]
[1741561900276,0.99017,2020.0,2019.9,0.00494388]
[1741561900676,4.99017,2020.0,2019.9,0.00494388]
[1741561900871,4.0,2020.0,2019.1,3.2078]
[1741561901183,4.19809,2019.8,2019.3,0.99048]
[1741561901374,3.2078,2019.8,2019.1,3.2078]
[1741561901578,3.2078,2019.8,2019.4,0.99044]
[1741561901778,2.948,2020.0,2019.7,3.2078]
[1741561901979,0.00741583,2020.3,2019.7,3.2078]
[1741561902185,0.00741583,2020.3,2020.0,3.2078]
[1741561902480,0.00741583,2020.3,2020.2,0.99008]
[1741561902996,11.0394,2021.0,2020.1,6.58328009]
[1741561903184,8.0914,2021.0,2020.0,3.2078]
[1741561903484,3.2078,2021.0,2020.3,3.2078]
[1741561903683,4.19746,2021.1,2020.6,0.98984]
[1741561903976,7.8721,2022.0,2020.8,3.2078]
[1741561903977,6.1558,2021.9,2020.8,3.2078]
[1741561904188,4.8871,2022.0,2021.0,3.2078]
[1741561904383,4.8871,2022.0,2020.9,2.47433]
[1741561904384,3.2078,2021.4,2020.9,7.46944685]
[1741561904579,3.2078,2021.4,2020.9,6.47974685]
[1741561904783,3.2078,2021.0,2020.6,0.00741583]
[1741561904986,3.2078,2020.7,2020.6,0.00741583]
[1741561905282,0.00741583,2020.9,2020.6,0.00741583]
[1741561905782,4.19763,2020.7,2020.6,0.00741583]
[1741561906180,0.98992,2020.6,2020.1,0.99009]
[1741561906385,3.2078,2020.3,2019.9,0.4952]
[1741561906681,2.948,2020.7,2019.6,3.2078]
[1741561906682,3.2078,2020.0,2019.6,3.2078]
[1741561906984,2.985,2020.8,2019.6,3.2078]
[1741561906985,2.948,2020.1,2019.6,5.68373]
[1741561907283,3.2078,2020.0,2019.6,3.21521583]
[1741561907474,3.2078,2019.9,2019.6,0.00741583]
[1741561907676,3.2078,2019.9,2019.6,0.99776583]
[1741561907874,3.2078,2019.9,2019.6,0.00741583]
[1741561908482,3.2078,2019.9,2019.6,0.99775583]
[1741561908680,3.2078,2019.9,2019.6,0.00741583]
[1741561908878,6.1558,2020.5,2020.1,0.99012]
[1741561909080,6.1558,2020.5,2019.7,2.47581]
[1741561909081,3.2078,2020.6,2020.0,2.47537]
[1741561909283,3.21521583,2020.9,2020.5,3.2078]
[1741561909477,0.00741583,2020.9,2020.8,0.98978]
[1741561909684,5.83e-06,2020.9,2020.8,0.98978]
[1741561909888,5.83e-06,2020.9,2020.8,6.55470035]
[1741561910085,5.83e-06,2020.9,2020.5,3.2078]
[1741561910281,4.19771,2020.6,2020.1,0.9901]
[1741561910494,6.15580583,2020.9,2020.1,0.4952]
[1741561910795,3.93776583,2020.9,2020.4,0.98994]
[1741561911087,2.94800583,2020.9,2020.3,0.00741583]
[1741561911394,0.98979,2020.8,2020.3,0.00741583]
[1741561911684,0.9898,2020.8,2020.3,0.99741583]
[1741561911886,0.9898,2020.8,2020.4,0.98996]
[1741561912084,2.94800583,2020.9,2020.7,0.9898]
[1741561912277,2.94800583,2020.9,2020.8,0.98978]
[1741561912278,5.83e-06,2020.9,2020.8,0.98978]
[1741561912483,5.83e-06,2020.9,2020.6,0.98985]
[1741561912683,5.83e-06,2020.9,2020.8,0.98978]
[1741561912888,5.83e-06,2020.9,2020.7,0.9898]
[1741561913082,5.83e-06,2020.9,2020.8,0.98978]
[1741561913292,5.83e-06,2020.9,2020.4,3.2078]
[1741561913581,5.83e-06,2020.9,2020.3,0.00741583]
[1741561913785,5.83e-06,2020.9,2020.5,0.98992]
[1741561913982,5.83e-06,2020.9,2020.3,0.00741583]
[1741561914183,4.19778,2020.4,2020.3,0.00741583]
[1741561914480,4.19778,2020.4,2019.7,0.99028]
[1741561914481,0.99009,2020.2,2019.7,0.99028]
[1741561914688,4.19794,2020.1,2019.4,3.2078]
[1741561914889,0.99028,2019.8,2019.4,3.2078]
[1741561915096,3.2078,2020.1,2019.4,4.19826]
[1741561915389,3.2078,2019.8,2019.1,22.207]
[1741561915583,0.00741583,2020.0,2019.7,3.2078]
[1741561915786,5.83e-06,2020.0,2019.9,0.99022]
[1741561916186,6.92236,2021.7,2020.9,0.98973]
[1741561916390,6.1558,2021.7,2020.5,3.2078]
[1741561916594,3.2078,2021.4,2020.6,2.47471]
[1741561916790,8.0088,2022.0,2021.9,0.98924]
[1741561917090,6.1558,2022.0,2021.0,3.2078]
[1741561917284,6.1558,2022.0,2020.7,0.4952]
[1741561917285,0.98951,2021.4,2020.7,0.4952]
[1741561917488,2.948,2021.6,2021.3,0.00741583]
[1741561917688,3.93743,2021.6,2021.3,0.00741583]
[1741561917889,2.948,2021.6,2021.5,0.98944]
[1741561918186,10.1558,2021.6,2020.7,3.2078]
[1741561918390,3.2078,2021.2,2020.5,0.4952]
[1741561918589,4.19741,2021.2,2020.5,0.4952]
[1741561918786,3.2078,2021.2,2020.3,22.207]
[1741561918992,0.98986,2020.7,2020.3,22.207]
[1741561919293,3.2078,2020.6,2020.3,22.207]
[1741561919484,3.2078,2020.6,2020.3,0.00741]
[1741561919690,0.98998,2020.4,2020.3,0.00741]
[1741561919888,2.948,2020.4,2019.3,22.21]
[1741561920091,3.2078,2019.7,2019.0,0.4952]
[1741561920290,3.2078,2020.1,2019.5,0.99039]
[1741561920483,3.2078,2019.8,2019.1,7.04768587]
[1741561920996,3.2078,2019.8,2019.6,0.99037]
[1741561920997,0.00741583,2019.7,2019.6,0.99037]
[1741561921292,5.83e-06,2019.7,2019.6,0.99037]
[1741561921493,5.83e-06,2019.7,2019.2,5.68418]
[1741561921695,5.83e-06,2019.7,2019.6,7.34603406]
[1741561922188,5.83e-06,2019.7,2019.6,0.99037]
[1741561922388,5.933,2021.1,2019.7,2.47576]
[1741561922589,3.2078,2020.7,2019.8,11.71605]
[1741561922894,6.1558,2020.7,2019.8,14.2886247]
[1741561923095,3.2078,2020.4,2019.8,7.7768]
[1741561923292,3.2078,2020.1,2019.6,22.211]
[1741561923493,3.2078,2020.1,2019.4,0.00741]
[1741561923494,2.948,2020.0,2019.4,0.00741]
[1741561923694,3.2078,2019.5,2018.6,9.5434]
[1741561924106,0.99075,2018.9,2018.6,3.7038]
[1741561924291,2.948,2019.2,2018.6,3.2078]
[1741561924590,6.1558,2019.2,2018.7,25.4188]
[1741561924796,3.2078,2019.0,2018.7,22.211]
[1741561925092,0.99074,2018.9,2018.7,22.211]
[1741561925297,3.2078,2019.0,2018.2,0.496]
[1741561925504,0.99084,2018.7,2018.2,0.99103]
[1741561925698,3.2078,2019.0,2018.1,22.53311592]
[1741561925898,3.2078,2019.0,2018.1,19.32531592]
[1741561925899,3.2078,2018.3,2018.1,19.32531592]
[1741561926191,3.2078,2018.8,2018.1,19.32531592]
[1741561926396,3.2078,2018.8,2018.1,23.02911592]
[1741561926596,2.948,2018.7,2018.1,23.02911592]
[1741561926793,3.2078,2018.2,2017.7,26.90608]
[1741561926997,3.2078,2018.5,2018.4,0.99096]
[1741561927193,5.83e-06,2018.2,2018.1,0.99111]
[1741561927392,3.2078,2019.8,2018.4,11.7068739]
[1741561927592,7.8209,2019.9,2018.9,3.2078]
[1741561927793,7.7839,2019.9,2018.9,3.2078]
[1741561928004,3.2078,2019.1,2018.6,3.2078]
[1741561928192,3.2078,2018.7,2018.5,0.496]
[1741561928392,3.2078,2018.7,2018.3,3.2078]
[1741561928393,4.19853,2018.9,2018.3,3.2078]
[1741561928591,3.2078,2018.6,2018.4,0.00741583]
[1741561928791,0.00741583,2018.8,2018.4,0.99833583]
[1741561928997,0.00741583,2018.8,2018.6,0.99085]
[1741561929197,0.00741583,2018.8,2018.4,0.99835583]
[1741561929398,0.00741583,2018.8,2018.4,0.00741583]
[1741561929599,5.83e-06,2018.8,2018.7,4.19861]
[1741561929803,9.1408,2020.2,2019.7,0.99029]
[1741561930097,0.99037,2019.6,2019.1,0.9906]
[1741561930289,9.1408,2019.8,2019.0,25.92]
[1741561930494,2.47541,2020.1,2019.2,6.45236799]
[1741561930495,3.2078,2020.1,2019.2,6.45236799]
[1741561930698,4.1978,2020.4,2019.8,0.99025]
[1741561930905,0.00741583,2019.9,2019.7,0.99028]
[1741561931099,0.00741583,2019.9,2019.8,0.99027]
[1741561931400,3.2078,2020.4,2019.8,6.45096664]
[1741561931700,3.2078,2020.4,2019.9,3.2078]
[1741561931900,3.2078,2020.1,2019.4,0.00741583]
[1741561932101,0.99039,2019.6,2019.4,0.00741583]
[1741561932399,3.2078,2020.1,2019.4,0.50261583]
[1741561932600,0.00741583,2019.7,2019.5,6.37321017]
[1741561932806,0.99776583,2019.7,2019.4,0.00741583]
[1741561933304,3.2078,2019.5,2019.4,0.00741583]
[1741561933603,0.00741583,2019.7,2019.4,0.00741583]
[1741561933803,4.19822,2019.5,2019.4,0.00741583]
[1741561934205,0.00741583,2019.7,2019.4,0.00741583]
[1741561934508,3.2078,2019.5,2019.0,22.217]
[1741561934694,0.99055,2019.3,2018.9,3.2078]
[1741561934895,3.2078,2019.2,2018.6,3.2078]
[1741561935305,3.2078,2018.9,2018.1,25.9228]
[1741561935606,2.948,2018.9,2018.1,22.219]
[1741561935804,3.2078,2019.2,2018.3,3.21521583]
[1741561936002,0.00741583,2019.7,2019.6,0.99037]
[1741561936205,0.00741583,2019.7,2018.9,3.2078]
[1741561936403,2.95541583,2019.7,2019.4,0.00741583]
[1741561936604,0.00741583,2019.7,2019.6,0.99037]
[1741561936808,0.00741583,2019.7,2019.4,0.99784583]
[1741561937105,0.00741583,2019.7,2019.6,0.99037]
[1741561937306,5.83e-06,2019.7,2019.6,8.19817]
[1741561937509,4.19771,2020.6,2019.7,2.47581]
[1741561937803,0.98996,2020.5,2019.6,5.68372]
[1741561938008,0.98998,2020.4,2020.0,0.99014]
[1741561938205,0.98998,2020.4,2019.6,5.68372]
[1741561938206,3.2078,2020.6,2019.9,0.99019]
[1741561938406,3.2078,2020.2,2019.9,0.9902]
[1741561938605,3.2078,2020.2,2019.6,3.2078]
[1741561938811,0.00741583,2020.5,2019.9,2.47549]
[1741561939007,0.00741583,2020.5,2019.7,10.2290496]
[1741561939212,0.99012,2020.2,2019.7,10.7241496]
[1741561939405,3.2078,2020.3,2019.7,3.21521583]
[1741561939606,0.00741583,2020.5,2019.7,3.21521583]
[1741561939804,0.00741583,2020.5,2020.2,0.99005]
[1741561940011,0.00741583,2020.5,2019.8,6.51863377]
[1741561940315,3.2078,2020.0,2019.7,0.00741583]
[1741561940518,2.948,2020.4,2019.7,3.21521583]
[1741561940710,3.2078,2020.3,2019.7,3.21521583]
[1741561940908,0.99027,2019.8,2019.7,0.00741583]
[1741561941103,5.933,2019.8,2019.0,3.2078]
[1741561941307,3.2078,2019.8,2019.0,3.2078]
[1741561941609,0.9903,2019.8,2019.4,4.19824]
[1741561941811,0.99034,2019.7,2019.4,4.19825]
[1741561942106,6.1558,2019.9,2019.1,2.47654]
[1741561942309,7.14604,2019.9,2019.6,0.99035]
[1741561942507,0.99035,2019.7,2019.4,0.99045]
[1741561942703,0.99047,2019.4,2019.3,0.00741583]
[1741561943109,0.99058,2019.2,2018.9,0.99069]
[1741561943307,3.2078,2019.0,2018.4,25.9218]
[1741561943508,0.99096,2018.4,2018.0,0.99114]
[1741561943817,3.2078,2018.3,2017.6,3.2078]
[1741561944112,3.2078,2017.9,2017.7,0.00741583]
[1741561944307,0.99125,2017.8,2017.7,0.00741583]
[1741561944715,4.0,2017.8,2017.5,19.32531592]
[1741561944904,4.19915,2017.6,2017.5,15.97419644]
[1741561945412,3.2078,2017.6,2017.5,16.96559644]
[1741561945605,12.7842,2018.0,2017.5,15.97419644]
[1741561945805,3.2078,2018.0,2017.5,15.97419644]
[1741561946002,3.2078,2018.0,2017.8,0.99123]
[1741561946203,0.00741583,2018.2,2018.0,0.99112]
[1741561946615,0.99122,2017.9,2017.5,0.99137]
[1741561946913,0.9914,2017.6,2017.1,9.4828]
[1741561947110,0.9914,2017.6,2017.1,3.2078]
[1741561947111,0.99144,2017.5,2017.1,3.2078]
[1741561947311,6.9243,2017.8,2016.9,2.47925]
[1741561947507,5.933,2018.1,2017.7,3.2078]
[1741561947709,0.00741583,2018.2,2017.6,3.2078]
[1741561947911,3.21521583,2018.2,2017.3,3.2078]
[1741561948111,0.00741583,2018.2,2017.8,3.2078]
[1741561948417,0.99137,2017.6,2017.3,6.47193155]
[1741561948625,6.1558,2018.1,2017.1,3.2078]
[1741561948626,3.2078,2017.8,2017.1,3.2078]
[1741561948919,2.948,2018.0,2017.2,2.47888]
[1741561949116,2.948,2018.0,2017.1,3.2078]
[1741561949117,3.2078,2017.8,2017.1,3.2078]
[1741561949310,0.99167,2017.0,2016.8,3.2078]
[1741561949510,0.99167,2017.0,2016.5,4.69566]
[1741561949714,0.99172,2016.9,2016.5,3.7038]
[1741561949924,0.00743439,2017.1,2016.5,3.2078]
[1741561950220,0.00743439,2017.1,2016.8,3.2078]
[1741561950417,0.00743439,2017.1,2016.5,3.2078]
[1741561950614,0.00743439,2017.1,2016.8,3.2078]
[1741561951114,0.00743439,2017.1,2017.0,0.99165]
[1741561951314,3.2078,2018.3,2017.1,2.47899]
[1741561951514,3.2078,2018.3,2017.6,3.2078]
[1741561951721,3.2078,2018.0,2017.2,6.51878298]
[1741561951908,0.9912,2017.9,2017.2,6.51878298]
[1741561952112,3.2078,2018.0,2017.0,3.2078]
[1741561952312,3.2078,2018.0,2017.3,0.00743439]
[1741561952313,0.00743439,2017.7,2017.3,0.00743439]
[1741561952510,0.00743439,2017.7,2017.3,3.21523439]
[1741561953019,3.2078,2017.6,2017.3,0.00743439]
[1741561953222,0.99145,2017.4,2017.3,0.00743439]
[1741561953620,4.99145,2017.4,2017.3,0.00743439]
[1741561954023,2.948,2017.5,2017.3,0.00743439]
[1741561954225,0.00743439,2017.7,2017.3,0.00743439]
[1741561954925,0.00743439,2017.7,2017.6,0.99135]
[1741561955118,0.00743439,2017.7,2017.5,4.19917]
[1741561955314,0.00743439,2017.7,2017.5,3.2078]
[1741561955525,0.00743439,2017.7,2017.6,0.99135]
[1741561955715,0.00743439,2017.7,2017.5,3.2078]
[1741561955922,2.948,2018.8,2017.6,12.5371378]
[1741561956119,10.739,2018.9,2018.1,3.2078]
[1741561956423,3.2078,2018.8,2018.1,3.2078]
[1741561956622,0.99104,2018.3,2018.1,3.2078]
[1741561956818,2.948,2018.7,2017.8,5.68588]
[1741561957020,2.948,2018.9,2018.4,3.2078]
[1741561957226,0.00743439,2018.5,2018.4,3.2078]
[1741561957522,0.00743439,2018.5,2018.2,0.00743439]
[1741561957722,3.2078,2018.3,2018.2,0.00743439]
[1741561957915,0.00743439,2018.5,2018.2,0.00743439]
[1741561958120,0.00743439,2018.5,2018.4,0.99096]
[1741561958321,0.99837439,2018.5,2018.2,0.00743439]
[1741561958528,4.39e-06,2018.5,2018.4,0.99096]
[1741561959018,11.4358,2019.9,2018.4,0.99096]
[1741561959019,2.948,2020.0,2018.6,3.2078]
[1741561959226,5.933,2020.1,2019.5,3.2078]
[1741561959528,3.2078,2020.1,2019.5,3.2078]
[1741561959731,5.42312,2020.3,2018.7,45.18400172]
[1741561959732,0.9904,2019.6,2019.1,0.99059]
[1741561959918,2.985,2020.4,2018.6,2.47708]
[1741561959919,3.2078,2019.2,2018.6,3.2078]
[1741561960124,0.99094,2018.5,2018.0,4.69413]
[1741561960320,6.1558,2018.8,2018.7,0.00743439]
[1741561960520,9.1408,2018.8,2017.7,6.96707475]
[1741561960722,0.99122,2017.9,2017.7,6.47107475]
[1741561960919,3.2078,2018.2,2017.3,3.2078]
[1741561960920,3.2078,2017.8,2017.3,3.2078]
[1741561961230,6.1558,2018.1,2017.1,2.97498]
[1741561961428,6.1558,2018.1,2017.3,0.99146]
[1741561961726,2.985,2018.2,2017.5,0.00743439]
[1741561961924,4.19912,2017.7,2017.5,0.00743439]
[1741561962224,3.2078,2017.7,2017.5,0.99878439]
[1741561962428,3.2078,2017.7,2017.6,0.99132]
[1741561962727,3.2078,2018.1,2017.5,0.00743439]
[1741561963118,2.985,2018.2,2018.0,0.99113]
[1741561963320,2.948,2018.3,2017.6,9.64154695]
[1741561963622,4.19892,2018.1,2017.7,0.99128]
[1741561963822,3.2078,2018.1,2017.6,4.19913]
[1741561964028,3.2078,2018.1,2017.6,3.2078]
[1741561964228,3.2078,2018.1,2017.5,0.00743439]
[1741561964725,5.933,2018.3,2017.5,0.00743439]
[1741561964726,3.2078,2017.8,2017.5,0.00743439]
[1741561964932,0.99135,2017.6,2017.5,0.00743439]
[1741561965324,3.2078,2017.8,2017.5,0.00743439]
[1741561966028,0.99135,2017.6,2017.5,0.00743439]